[Event "Austrian Championship 2022"]
[Site "Vienna"]
[Date "2022.08.13"]
[Round "2.1"]
[White "Fuchs, Patrick"]
[Black "Exler, Veronika"]
[Result "1-0"]
[ECO "B11"]
[WhiteElo "1990"]
[BlackElo "2132"]
[Annotator "TA"]
[PlyCount "49"]
[EventDate "2022.08.12"]
[EventType "swiss"]
[EventCountry "AUT"]
[SourceTitle "playchess.com"]
[Source "ChessBase"]
[SourceQuality "1"]
[TimeControl "40/5400+30:1800+30"]

{[%evp 11,49,17,33,19,25,16,10,-7,33,13,8,0,8,14,23,33,66,24,26,26,32,22,33,21,21,0,0,0,0,0,0,-11,-16,-395,5,0,423,395,29997,29998]} 1. e4 {[%emt 0:00:06]} c6 {[%emt 0:00:03]} 2. Nc3 {[%emt 0:00:06]} d5 {[%emt 0:00:04]} 3. Nf3 {[%emt 0:00:06]} Bg4 {[%emt 0:00:29]} 4. h3 {[%emt 0:00:07]} Bxf3 {[%emt 0:00:03]} 5. Qxf3 {[%emt 0:00:08]} e6 {[%emt 0:00:05]} 6. d4 {[%emt 0:00:27]} dxe4 {[%emt 0:00:08]} 7. Qxe4 {[%emt 0:00:07] B11: Caro-Kann: Two Knights Variation.} Nf6 {[%emt 0:00:07]} 8. Qd3 {[%emt 0:00:21]} Be7 {[%emt 0:05:53]} 9. g3 {[%emt 0:00:48] The position is equal.} Nd5 {[%emt 0:10:21] 9...Na6 is the modern continuation.} (9... Na6 $5 {[%cal Ra6b4]}) 10. a3 {[%emt 0:04:42]} Nxc3 {[%emt 0:25:31]} 11. Qxc3 {[%emt 0:04:20]} Qd5 {[%emt 0:00:05] Inhibits Bg2.} 12. Rg1 {[%emt 0:00:50] [#]} Bf6 $146 {[%emt 0:15:56]} ({Predecessor:} 12... a5 13. Be3 O-O 14. Qd3 a4 15. Bg2 Qa5+ 16. Bd2 Qb6 17. O-O-O Nd7 18. Bc3 Nf6 {½-½ (43) Ladron de Guevara Pinto,P (2325)-Rasmussen,K (2430) Granada 2014}) 13. Be3 {[%emt 0:02:13]} Nd7 {[%emt 0:01:44]} 14. O-O-O {[%emt 0:08:24]} Nb6 {[%emt 0:00:21]} 15. Kb1 {Against Qa2+} O-O-O {[%emt 0:00:30]} 16. Be2 h5 {[%emt 0:00:30]} 17. Qb4 Qe4 {[%emt 0:00:30]} 18. Qa5 Bxd4 {[%emt 0:00:30]} 19. Rxd4 Rxd4 {[%emt 0:00:30]} 20. Qxa7 Kc7 {[%emt 0:00:30] [#] Threatens to win with ...Ra8.} 21. Bd3 {This bishop pair is nice.} Qd5 {[%emt 0:00:30]} 22. c4 $2 {[%mdl 8192]} (22. Bxd4 $11 Qxd4 23. Qa5) 22... Qd7 $2 {[%emt 0:00:30]} ({Not} 22... Qc5 $2 23. b4 Qe5 24. Qa5 Qxa5 25. bxa5 Rxd3 26. Bxb6+ Kd7 27. Kc2 Rxa3 28. Rd1+ Kc8 29. h4 $19) (22... Qe5 $19 {Strongly threatening ...Ra8.} 23. c5 Qxc5) 23. Qa5 $11 {Really sharp!} Rd8 $2 {[%emt 0:00:30][%mdl 8192]} 24. c5 {[%cal Bc4c5,Bc5b6][%mdl 96] [#] Pin} Rxd3 $2 {[%emt 0:00:30]} (24... Qd5 $18) 25. cxb6+ {[%mdl 64] Discovered Attack.  Weighted Error Value: White=0.53/Black=1.02} 1-0

[Event "Austrian Championship 2022"]
[Site "Vienna"]
[Date "2022.08.13"]
[Round "2.2"]
[White "Horvath, Dominik"]
[Black "Schnepp, Gunnar"]
[Result "1-0"]
[ECO "B22"]
[WhiteElo "2488"]
[BlackElo "2265"]
[Annotator "TA"]
[PlyCount "63"]
[EventDate "2022.08.12"]
[EventType "swiss"]
[EventCountry "AUT"]
[SourceTitle "playchess.com"]
[Source "ChessBase"]
[SourceQuality "1"]
[TimeControl "40/5400+30:1800+30"]

{[%evp 16,63,21,8,26,0,10,7,31,30,37,33,41,45,35,45,50,31,38,30,58,65,57,61,62,43,43,45,102,100,109,115,114,54,121,123,301,259,295,252,469,442,483,430,1323,1298,1231,1495,1252,1212]} 1. e4 {[%emt 0:00:02]} c5 {[%emt 0:00:23]} 2. c3 {[%emt 0:00:04]} Nf6 {[%emt 0:00:26]} 3. e5 {[%emt 0:00:06]} Nd5 {[%emt 0:00:04]} 4. Bc4 {[%emt 0:00:04]} e6 {[%emt 0:00:28]} 5. d4 {[%emt 0:00:21]} d6 {[%emt 0:05:48]} 6. Nf3 {[%emt 0:00:34]} Nc6 {[%emt 0:01:45]} 7. O-O {[%emt 0:00:26]} cxd4 {[%emt 0:07:08]} 8. cxd4 {[%emt 0:00:04]} Be7 {[%emt 0:00:41]} 9. Qe2 {[%emt 0:00:02]} a6 {[%emt 0:01:34] B22: Sicilian: 2 c3.} 10. Qe4 {[%emt 1:33:47]} O-O {[%emt 0:12:10]} 11. Bb3 {[%emt 0:00:00] [#]} Bd7 $146 {[%emt 0:15:17] The position is equal.} ({Predecessor:} 11... Rb8 12. Nc3 Nxc3 13. bxc3 dxe5 14. dxe5 Qc7 15. Bc2 g6 16. Bh6 Rd8 17. Rae1 Rd5 18. Re3 {0-1 (59) Eder,M (2170)-Csonka,A (2362) Graz 2021}) 12. Nc3 {[%emt 0:00:00]} Nxc3 {[%emt 0:10:59]} 13. bxc3 {[%emt 0:00:00]} d5 {[%emt 0:01:05]} 14. Qg4 {[%emt 0:00:00]} f5 {[%emt 0:02:27]} 15. exf6 {[%emt 0:00:00]} Bxf6 {[%emt 0:00:24]} 16. Qg3 {[%emt 0:00:00]} b5 {[%emt 0:04:46]} 17. Bc2 {[%emt 0:00:00]} b4 {[%emt 0:02:34]} 18. Ng5 {[%emt 0:00:00]} ({Don't play} 18. Qh3 g6 19. Ba4 Rc8 20. Bxc6 Rxc6 21. cxb4 e5 $15) 18... Bxg5 {[%emt 0:08:36]} 19. Bxg5 {[%emt 0:00:00]} Qe8 {[%emt 0:00:25]} 20. Qh3 $40 {[%emt 0:00:00][%mdl 128] Black needs to defend precisely. White is more active.} h6 {[%emt 0:03:38]} 21. Qd3 {[%emt 0:00:00] [#] White wants to mate with Qh7+.} Rf5 {[%emt 0:00:58]} (21... Qh5 $1 $14 22. Bd2 (22. Qh7+ Kf7 $11) 22... Ne7) 22. Bd2 $16 {[%emt 0:00:00]} bxc3 {[%emt 0:01:20]} 23. Qxc3 {[%emt 0:00:00]} Rf6 {[%emt 0:01:12]} 24. Rab1 {[%emt 0:00:00]} ({White should play} 24. Qd3 $16) 24... Rb8 {[%emt 0:05:11]} (24... Ne7 $14) 25. Qd3 {[%emt 0:00:00]} a5 $2 {[%emt 0:01:04] Black cannot hold the game after this.} (25... Kf7 $16 26. h3 a5) 26. Rxb8 $18 {[%emt 0:00:00]} Qxb8 {[%emt 0:00:38]} 27. Rb1 {[%emt 0:00:00]} Qa7 $2 {[%emt 0:01:07]} (27... Qf8 28. Qh7+ (28. Rb7 Qc8 $16) 28... Kf7) 28. Qh7+ {[%emt 0:00:00] White is clearly winning.} Kf7 {[%emt 0:00:44]} 29. Bd1 {[%emt 0:00:00] [#] Threatening mate with Bh5+. This bishop pair is nice.} Qxd4 {[%emt 0:10:10]} (29... Rf5 $142 30. Bg4 Qxd4 31. Bxf5 exf5) 30. Bh5+ {[%emt 0:00:00]} Kf8 {[%emt 0:00:25]} 31. Be3 {[%emt 0:00:00]} Qc3 {[%emt 0:01:31]} 32. Rc1 {[%emt 0:00:00] Weighted Error Value: White=0.09 (flawless) /Black=0.40} 1-0

[Event "Austrian Championship 2022"]
[Site "Vienna"]
[Date "2022.08.13"]
[Round "2.3"]
[White "Stanec, Nikolaus"]
[Black "Hechl, Gerald"]
[Result "1-0"]
[ECO "D02"]
[WhiteElo "2460"]
[BlackElo "2222"]
[Annotator "TA"]
[PlyCount "59"]
[EventDate "2022.08.12"]
[EventType "swiss"]
[EventCountry "AUT"]
[SourceTitle "playchess.com"]
[Source "ChessBase"]
[SourceQuality "1"]
[TimeControl "40/5400+30:1800+30"]

{[%evp 9,59,10,10,0,0,5,16,0,12,15,19,16,273,277,264,272,265,264,261,254,223,254,360,370,764,224,224,228,234,232,238,222,231,111,122,65,72,72,53,77,109,89,114,129,125,135,245,240,236,237,426,436]} 1. Nf3 {[%emt 0:00:02]} d5 {[%emt 0:00:04]} 2. g3 {[%emt 0:00:06]} Nd7 {[%emt 0:00:15]} 3. d4 {[%emt 0:01:15]} b5 {[%emt 0:00:04]} 4. Bg2 {[%emt 0:00:11]} e6 {[%emt 0:00:16]} 5. O-O {[%emt 0:00:12]} Bb7 {[%emt 0:00:26]} 6. e4 {[%emt 0:04:19] D02: 1 d4 d5 2 Nf3 sidelines, including 2...Nf6 3 g3 and 2...Nf6 3 Bf4.} dxe4 {[%emt 0:10:12]} 7. Ng5 {[%emt 0:00:17]} Ngf6 {[%emt 0:00:15] Prevents Qh5.} 8. Nc3 {[%emt 0:00:52][%csl LRb5,LRe4] [#] The position is equal.} b4 $146 {[%emt 0:01:18]} ({Predecessor:} 8... a6 9. Ncxe4 Bd5 10. Re1 h6 11. Nxf6+ Nxf6 12. Ne4 Be7 13. Nxf6+ Bxf6 14. Bxd5 Qxd5 {½-½ (20) Ding,L (2774)-Vallejo Pons,F (2705) Palma de Mallorca 2017}) 9. Ncxe4 {[%emt 0:01:07][%cal Og5f7]} Bd5 {[%emt 0:00:34]} 10. Qe2 {[%emt 0:08:26][%cal Og5f7] aiming for Nxf7!} Be7 $2 {[%emt 0:05:54][%mdl 8192] [#]} (10... Nxe4 $11 {and Black stays safe.} 11. Nxe4 (11. Bxe4 Nf6 $11) 11... Be7) 11. Nxf7 $1 $18 {[%emt 0:06:35][%mdl 512]} Kxf7 {[%emt 0:07:23]} 12. Ng5+ {[%emt 0:00:10]} Ke8 {[%emt 0:00:03]} 13. Bxd5 {[%emt 0:00:22][%mdl 64] Remove Defender} (13. Nxe6 Bxe6 14. Qxe6 Rb8 $16) 13... exd5 {[%emt 0:00:21] [#]} 14. Ne6 $1 {[%emt 0:00:07][%csl LRd8,LRg7]} (14. Qe6 Rf8 $11) 14... Qc8 {[%emt 0:00:37] [#]} 15. Re1 $1 {[%emt 0:04:43]} (15. Nxg7+ Kf7 $11) 15... Ne4 {[%emt 0:02:26]} (15... Bd6 {was necessary.} 16. Nxc7+ (16. Nxg7+ Kf7 $15) 16... Kf8 17. Nxa8 Qxa8) 16. Nxg7+ {[%emt 0:15:19]} Kf7 $2 {[%emt 0:00:04]} (16... Kd8 $2 17. Ne6+ Ke8 18. Qh5#) (16... Kf8 17. Bh6 (17. Qg4 Ndf6 $11) 17... Rg8 18. Nf5+ Kf7) 17. Nf5 $2 {[%emt 0:00:16]} (17. Qg4 Ndf6 18. Qxc8 Rhxc8 $17) (17. Qh5+ Kg8 18. Nf5) 17... Ndf6 {[%emt 0:08:27]} 18. Nxe7 {[%emt 0:01:55]} Kxe7 {[%emt 0:00:03]} 19. f3 {[%emt 0:00:33][%mdl 64] Pin} Qe6 {[%emt 0:02:48]} 20. fxe4 {[%emt 0:00:41]} Nxe4 {[%emt 0:00:06]} 21. Qh5 {[%emt 0:53:32]} (21. Bf4 $18 {is more deadly.}) 21... Raf8 $16 {[%emt 0:01:59]} 22. Bh6 {[%emt 0:00:00] Dancing on a razor blade.} (22. a3 $16) 22... Rf5 $14 {[%emt 0:03:03]} 23. Qh4+ {[%emt 0:00:00]} Kd7 {[%emt 0:00:16]} 24. Rf1 {[%emt 0:00:00]} Nd6 {[%emt 0:02:57]} 25. Bf4 $36 {[%emt 0:00:00][%mdl 2048] White is really pushing.} Qe4 {[%emt 0:07:05]} 26. c3 {[%emt 0:00:00]} ({But not} 26. Rae1 Qxd4+ 27. Kg2 Kc6 $14) 26... bxc3 {[%emt 0:00:43]} 27. bxc3 {[%emt 0:00:00] Hoping for Rae1.} Re8 {[%emt 0:00:11]} (27... Qe6 $16 28. Rab1 (28. Be5 Rhf8 $16) 28... h5) 28. Qxh7+ $18 {[%emt 0:00:00]} Kc6 {[%emt 0:00:04][%cal Of5f4] And now ...Rxf4! would win.} 29. Qh3 {[%emt 0:00:00]} Nc4 $2 {[%emt 0:10:07]} (29... Rf6 30. Rf2 Qd3) 30. Rae1 {[%emt 0:00:00] Weighted Error Value: White=0.27 (precise) /Black=0.41} ({Not} 30. Qh7 Nd6 $18) 1-0

[Event "Austrian Championship 2022"]
[Site "Vienna"]
[Date "2022.08.13"]
[Round "2.3"]
[White "Kordzadze, Nino"]
[Black "Sucher, Johannes"]
[Result "1-0"]
[ECO "A21"]
[WhiteElo "2043"]
[BlackElo "2164"]
[Annotator "TA"]
[PlyCount "29"]
[EventDate "2022.08.12"]
[EventType "swiss"]
[EventCountry "AUT"]
[SourceTitle "playchess.com"]
[Source "ChessBase"]
[SourceQuality "1"]
[TimeControl "40/5400+30:1800+30"]

{[%evp 9,29,6,7,1,-2,-10,1,-5,45,-17,-27,-25,109,-40,-17,-18,60,87,62,70,54,45]} 1. c4 {[%emt 0:00:02]} e5 {[%emt 0:00:26]} 2. g3 {[%emt 0:00:12]} g6 {[%emt 0:00:18]} 3. Bg2 {[%emt 0:00:23]} Bg7 {[%emt 0:00:20]} 4. Nc3 {[%emt 0:00:25]} Ne7 {[%emt 0:00:57]} 5. Rb1 {[%emt 0:01:30]} O-O {[%emt 0:04:36] [#]} 6. h4 $146 {[%emt 0:06:41] A21: English Opening: 1...e5 2 Nc3.} ({Predecessor:} 6. d3 c6 7. e4 Na6 8. Nge2 Nc7 9. Qb3 b5 10. Be3 bxc4 11. dxc4 Ne6 12. O-O Nd4 {0-1 (38) Kostic,N (2335)-Spasov,V (2585) Nis 1997}) 6... c6 {[%emt 0:08:19]} 7. c5 {[%emt 0:07:37]} d5 {[%emt 0:04:59] aiming for ...Bg4.} 8. cxd6 $1 {[%emt 0:00:29] The position is equal.} Qxd6 {[%emt 0:00:20]} (8... Nf5 $11) 9. Nf3 {[%emt 0:01:47]} (9. h5 $1 $14) 9... h6 $11 {[%emt 0:07:26]} 10. d3 {[%emt 0:04:16]} Be6 {[%emt 0:01:47]} (10... f5 $11 {remains equal.}) 11. Bd2 {[%emt 0:03:42]} ({White should try} 11. h5 $16) 11... f5 $1 $15 {[%emt 0:01:01]} 12. Qc1 {[%emt 0:05:50]} f4 {[%emt 0:04:40]} (12... Kh7 $1 $11) 13. gxf4 {[%emt 0:05:12]} exf4 {[%emt 0:00:56]} 14. Ne4 {[%emt 0:03:04]} Qc7 {[%emt 0:00:28]} 15. Bb4 {[%emt 0:03:25] Weighted Error Value: White=0.37/Black=0.31} 1-0

[Event "Austrian Championship 2022"]
[Site "Vienna"]
[Date "2022.08.13"]
[Round "2.4"]
[White "Sandhoefner, Florian"]
[Black "Diermair, Andreas"]
[Result "0-1"]
[ECO "D02"]
[WhiteElo "2289"]
[BlackElo "2452"]
[Annotator "TA"]
[PlyCount "84"]
[EventDate "2022.08.12"]
[EventType "swiss"]
[EventCountry "AUT"]
[SourceTitle "playchess.com"]
[Source "ChessBase"]
[SourceQuality "1"]
[TimeControl "40/5400+30:1800+30"]

{[%evp 13,84,-8,-25,-37,-25,-30,-24,-22,-10,-22,-22,-24,-24,-33,-35,-39,-35,-45,-27,-42,-33,-38,-16,-64,-33,-68,-46,-43,-41,-135,-145,-213,-104,-201,-193,-251,-222,-267,-264,-296,-283,-453,-460,-449,-439,-428,-410,-554,-535,-739,-748,-759,-757,-751,-744,-739,-731,-722,-718,-820,-808,-780,-795,-792,-789,-960,-937,-926,-914,-983,-968,-1781,-1552]} 1. d4 {[%emt 0:00:02]} Nf6 {[%emt 0:06:21]} 2. Nf3 {[%emt 0:00:07]} d5 {[%emt 0:00:07]} 3. Bf4 {[%emt 0:00:02]} c5 {[%emt 0:00:10]} 4. c3 {[%emt 0:00:05]} Nc6 {[%emt 0:00:43]} 5. e3 {[%emt 0:00:04]} Qb6 {[%emt 0:01:28]} 6. Qb3 {[%emt 0:00:01]} c4 {[%emt 0:00:09]} 7. Qxb6 {[%emt 1:33:39]} axb6 {[%emt 0:00:05][%cal Ba7b6,Bb6b5,Bb5b4][%mdl 32]} 8. h3 {[%emt 0:00:00] D02: 1 d4 d5 2 Nf3 sidelines, including 2...Nf6 3 g3 and 2...Nf6 3 Bf4.} e6 {[%emt 0:05:21]} 9. Be2 {[%emt 0:00:00]} b5 {[%emt 0:02:33]} 10. O-O {[%emt 0:00:00] Black has an edge.} b4 {[%emt 0:07:40]} 11. a3 {[%emt 0:00:00] [#]} b3 $146 {[%emt 0:08:15]} ({Predecessor:} 11... Be7 12. Nfd2 O-O 13. cxb4 Bxb4 14. Nc3 Ba5 15. Rfc1 Bd7 16. b3 Bxc3 17. Rxc3 b5 {0-1 (32) Van Veenendaal,E (2094)-Curi,G (2231) Montevideo 2017}) 12. Nbd2 {[%emt 0:00:00][%cal Oe3e4]} b5 {[%emt 0:01:09]} 13. Bh2 {[%emt 0:00:00]} Bb7 {[%emt 0:05:18]} 14. Rfe1 {[%emt 0:00:00]} Be7 {[%emt 0:00:31]} 15. Bf1 {[%emt 0:00:00]} O-O {[%emt 0:02:59]} 16. g4 {[%emt 0:00:00]} Nd7 {[%emt 0:07:00][%cal Bf6d7,Bd7b6,Bb6a4][%mdl 32]} 17. e4 {[%emt 0:00:00]} Nb6 {[%emt 0:00:57]} 18. Rab1 {[%emt 0:00:00]} (18. exd5 $1 $11 {is more appropriate.} Nxd5 19. Bg2) 18... Na4 {[%emt 0:02:06][%cal Oe7a3] Hoping for ...Bxa3!} 19. Re3 {[%emt 0:00:00]} Rfe8 {[%emt 0:03:15]} (19... dxe4 {feels hotter.} 20. Nxe4 Bxa3 21. bxa3 Ne7) 20. Bg2 {[%emt 0:00:00]} Bf8 {[%emt 0:00:44]} 21. Ne1 {[%emt 0:00:00]} (21. Ne5 $1 $15) 21... Ne7 $17 {[%emt 0:03:06] 0x0.002360f01316dp-1022s more active pieces.} 22. e5 {[%emt 0:00:00]} (22. Bd6 $17) 22... Nc8 {[%emt 0:01:02]} (22... Nc6 $19 {[%cal Oa4b2] ...Nxb2! is the strong threat.} 23. Nef3 {[#]} Nxb2 $1 24. Rxb2 Rxa3) 23. f4 {[%emt 0:00:00]} (23. Bf3 $17 {was worth a try.}) 23... Ncb6 $19 {[%emt 0:01:43][%cal Oa4b2]} 24. Nef3 {[%emt 0:00:00]} (24. Bf3 $142) 24... Bc8 {[%emt 0:02:08]} 25. Bg3 {[%emt 0:00:00]} Bd7 {[%emt 0:00:53]} 26. Be1 {[%emt 0:00:00]} Rec8 {[%emt 0:04:59]} 27. Nf1 $2 {[%emt 0:00:00] [#]} (27. h4 {keeps fighting.} Nxb2 28. Rxb2) 27... Nxb2 $1 {[%emt 0:09:59][%mdl 512]} 28. Rxb2 {[%emt 0:00:00]} Rxa3 {[%emt 0:00:05]} 29. Rb1 {[%emt 0:00:00]} Na4 {[%emt 0:01:26]} 30. Ng3 {[%emt 0:00:00]} b4 {[%emt 0:03:09] Black is clearly winning.} 31. Ne2 {[%emt 0:00:00]} b2 {[%emt 0:00:24] Threatens to win with ...Ra1.} 32. Kf2 {[%emt 0:00:00]} Ra1 {[%emt 0:01:05]} 33. Nd2 {[%emt 0:00:00]} bxc3 {[%emt 0:01:32][%mdl 64] Remove Defender} 34. Nxc3 {[%emt 0:00:00]} Nxc3 {[%emt 0:03:26]} 35. Rxc3 {[%emt 0:00:00]} Bb4 {[%emt 0:00:16][%cal Bf8b4,Bb4c3,Bc3d4][%mdl 32]} 36. Rc2 {[%emt 0:00:00]} c3 {[%emt 0:02:07]} 37. Rbxb2 {[%emt 0:00:00]} cxb2 {[%emt 0:00:10]} 38. Rxb2 {[%emt 0:00:00]} Bc3 {[%emt 0:00:26][%csl LRb2,LRd4]} 39. Rb3 {[%emt 0:00:00]} Bxd4+ {[%emt 0:00:32]} 40. Ke2 {[%emt 0:00:00]} Ba4 {[%emt 0:01:31]} 41. Rb7 {[%emt 0:03:26]} g5 42. Nf3 {[%emt 0:00:30]} Bd1+ {Weighted Error Value: White=0.55/Black=0.05 (flawless)} 0-1

[Event "Austrian Championship 2022"]
[Site "Vienna"]
[Date "2022.08.13"]
[Round "2.4"]
[White "Spiesberger, Gerhard"]
[Black "Kienboeck, Benjamin"]
[Result "1/2-1/2"]
[ECO "D02"]
[WhiteElo "1972"]
[BlackElo "2151"]
[Annotator "TA"]
[PlyCount "93"]
[EventDate "2022.08.12"]
[EventType "swiss"]
[EventCountry "AUT"]
[SourceTitle "playchess.com"]
[Source "ChessBase"]
[SourceQuality "1"]
[TimeControl "40/5400+30:1800+30"]

{[%evp 11,93,3,25,18,23,6,32,13,42,14,23,18,10,7,50,14,18,7,8,0,0,0,44,24,29,29,41,21,25,35,96,48,41,56,83,78,287,86,132,54,36,0,0,0,0,3,22,43,85,77,536,77,77,7,108,52,65,58,76,9,8,0,0,0,0,0,0,0,0,0,0,0,0,0,0,0,0,0,0,0,0,0,0,0]} 1. d4 {[%emt 0:00:07]} Nf6 {[%emt 0:00:08]} 2. g3 {[%emt 0:00:28]} d5 {[%emt 0:00:19]} 3. Bg2 {[%emt 0:00:22]} g6 {[%emt 0:00:11]} 4. Nf3 {[%emt 0:00:42]} Bg7 {[%emt 0:00:20]} 5. O-O {[%emt 0:00:29]} O-O {[%emt 0:00:13]} 6. Nbd2 {[%emt 0:05:48]} c6 {[%emt 0:01:59]} 7. Re1 {[%emt 0:00:51] D02: 1 d4 d5 2 Nf3 sidelines, including 2...Nf6 3 g3 and 2...Nf6 3 Bf4.} Ne4 {[%emt 0:08:15]} 8. Ne5 {[%emt 0:04:32]} Nd6 {[%emt 0:01:19] [#]} 9. e4 $146 {[%emt 0:03:06] White is slightly better.} ({Predecessor:} 9. c3 Nd7 10. Nd3 e5 11. dxe5 Nxe5 12. Nxe5 Bxe5 13. Nf3 Bg7 14. Qb3 Qb6 15. Be3 {1-0 (39) Ehmann,R (1540)-Dupke,A (1762) Mecklenburg VP 2017}) 9... Be6 {[%emt 0:01:49]} 10. c3 {[%emt 0:01:32]} dxe4 {[%emt 0:03:42]} 11. Nxe4 {[%emt 0:01:26]} Nxe4 {[%emt 0:02:40]} 12. Bxe4 {[%emt 0:01:30]} Bd5 {[%emt 0:00:15]} 13. Qf3 {[%emt 0:04:52]} Nd7 {[%emt 0:04:34]} 14. Nxd7 {[%emt 0:10:16]} Qxd7 {[%emt 0:01:06]} 15. Bxd5 {[%emt 0:05:14]} cxd5 {[%emt 0:00:14]} 16. Kg2 {[%emt 0:00:17]} Bf6 {[%emt 0:02:21]} 17. Bf4 {[%emt 0:02:09]} Rfc8 {[%emt 0:01:02]} 18. Re2 {[%emt 0:02:30]} b5 {[%emt 0:05:53][%cal Ob5b4]} 19. Rae1 {[%emt 0:01:23]} e6 {[%emt 0:03:36]} 20. h4 h5 {[%emt 0:00:30]} (20... b4 $14) 21. g4 (21. Re3 $16) 21... hxg4 $14 {[%emt 0:00:30]} 22. Qxg4 Kf8 {[%emt 0:00:30]} 23. Bg5 Qe7 {[%emt 0:00:30] [#]} (23... Bxg5 $16 {might work better.} 24. Qxg5 Qe7) 24. f4 $2 (24. Rxe6 $1 $18 {[%mdl 512] is more deadly.} fxe6 25. Rxe6 Bxg5 26. hxg5 (26. Rxe7 Bxe7 27. Qxg6 Rd8 $11)) 24... Kg7 $16 {[%emt 0:00:30]} 25. h5 (25. Re5 $1 $16) 25... Bxg5 $14 {[%emt 0:00:30]} 26. hxg6 (26. fxg5 $5 {[%cal Rh5g6]} gxh5 27. Qf4 $14 (27. Qxh5 Rh8 $11)) 26... Qf6 {[%emt 0:00:30]} 27. fxg5 Qxg6 {[%emt 0:00:30]} 28. Rf2 {Strongly threatening Rf6.} Rg8 {[%emt 0:00:30]} (28... Rh8 $5 {[%cal Rh8h5]}) 29. Ref1 {And now Rf6 would win.} Raf8 {[%emt 0:00:30] [#]} 30. Rf6 $1 ({Much weaker is} 30. Qg3 $6 Rh8 $11) 30... Qc2+ {[%emt 0:00:30][%mdl 8192] [#]} (30... Qe4+ $16 {is tougher.} 31. Qxe4 dxe4) 31. R1f2 $2 (31. Kg1 $1 $18 {is the precise move to win. Intending Qh5 and mate.} Qd3 32. Qh5 Qg3+ 33. Kh1) 31... Qe4+ $16 {[%emt 0:00:30]} 32. Qf3 {The board is on fire.} ({White should play} 32. Qxe4 $16 dxe4 33. g6) 32... Kh8 {[%emt 0:00:30]} (32... Rh8 $11) 33. Rh6+ (33. Qxe4 $16 {White wants to mate with Rh6+.} dxe4 34. g6 (34. Rxf7 Rxg5+ 35. Kh3 Rxf7 $11)) 33... Kg7 $14 {[%emt 0:00:30]} 34. Qxe4 $1 dxe4 {[%emt 0:00:30][%mdl 4096] Endgame KRR-KRR} 35. Rhf6 {White is more active.} (35. Kg3 $16) 35... Rh8 $132 {[%emt 0:00:30][%mdl 2048] Black is fighting back. The position is equal.} 36. Kf1 Rh5 {[%emt 0:00:30]} 37. g6 {[%cal Rg6f7]} Rf5 {[%emt 0:00:30]} 38. Rxf7+ R8xf7 {[%emt 0:00:30]} 39. gxf7 e3 {[%emt 0:00:30][%mdl 64] Pin} 40. Rxf5 exf5 {[%emt 0:00:30][%cal Be6f5,Bf5f4][%mdl 32] KP-KP} 41. Ke2 f4 {[%emt 0:30:30]} 42. b3 Kxf7 {[%emt 0:00:30]} 43. c4 bxc4 {[%emt 0:00:30]} 44. bxc4 Ke6 {[%emt 0:00:30]} 45. Kf3 Kd6 {[%emt 0:00:30]} 46. Ke2 Ke6 {[%emt 0:00:30]} 47. Kf3 {Weighted Error Value: White=0.49/Black=0.45} 1/2-1/2

[Event "Austrian Championship 2022"]
[Site "Vienna"]
[Date "2022.08.13"]
[Round "2.5"]
[White "Schwabeneder, Florian"]
[Black "Sadilek, Maximilian"]
[Result "1/2-1/2"]
[ECO "A88"]
[WhiteElo "2430"]
[BlackElo "2230"]
[Annotator "TA"]
[PlyCount "32"]
[EventDate "2022.08.12"]
[EventType "swiss"]
[EventCountry "AUT"]
[SourceTitle "playchess.com"]
[Source "ChessBase"]
[SourceQuality "1"]
[TimeControl "40/5400+30:1800+30"]

{[%evp 20,32,24,15,40,25,37,29,42,39,31,25,41,7,25]} 1. Nf3 {[%emt 0:00:04]} d6 {[%emt 0:07:57]} 2. d4 {[%emt 0:01:57]} f5 {[%emt 0:00:39]} 3. g3 {[%emt 0:02:07]} Nf6 {[%emt 0:00:11]} 4. Bg2 {[%emt 0:00:07]} g6 {[%emt 0:00:39]} 5. O-O {[%emt 0:00:15]} Bg7 {[%emt 0:00:05]} 6. b3 {[%emt 0:00:21]} O-O {[%emt 0:00:07]} 7. Bb2 {[%emt 0:00:06]} c6 {[%emt 0:25:09]} 8. c4 {[%emt 0:02:06]} Qe8 {[%emt 0:00:09]} 9. Nc3 {[%emt 0:04:10]} Na6 {[%emt 0:06:53]} 10. d5 {[%emt 0:10:38]} Bd7 {[%emt 0:03:55]} 11. Rc1 {[%emt 0:04:24]} h6 {[%emt 0:06:40] A88: Dutch Defence: Leningrad System: 5 Nf3 0-0 6 0-0 d6 7 Nc3 c6.} 12. Qd2 {[%emt 0:12:05] [#]} g5 $146 {[%emt 0:03:06]} ({Predecessor:} 12... Nc5 13. Ne1 Rc8 14. Nd3 Nxd3 15. exd3 Nh5 16. Rfe1 Qf7 17. Qe3 f4 18. Qxe7 Qf5 19. Qxd6 fxg3 20. fxg3 {½-½ (52) Boyd,S (2449)-Voetter,H (2412) ICCF email 2009}) 13. e3 {[%emt 0:23:14]} Nc5 {[%emt 0:17:07]} 14. Nd4 {[%emt 0:06:55]} Rc8 {[%emt 0:00:54]} 15. Qe2 {[%emt 0:10:38]} Qg6 {[%emt 0:02:32]} 16. f4 {[%emt 0:02:38]} e5 {[%emt 0:00:30] Black got outplayed after the opening.  Weighted Error Value: White=0.10 (very precise) /Black=0.10 (very precise)} 1/2-1/2

[Event "Austrian Championship 2022"]
[Site "Vienna"]
[Date "2022.08.13"]
[Round "2.5"]
[White "Jethan, Martin"]
[Black "Tumanyan, Gor"]
[Result "1/2-1/2"]
[ECO "A45"]
[WhiteElo "2103"]
[BlackElo "1884"]
[Annotator "NA RC"]
[PlyCount "29"]
[EventDate "2022.08.12"]
[EventType "swiss"]
[EventCountry "AUT"]
[SourceTitle "playchess.com"]
[Source "ChessBase"]
[SourceQuality "1"]
[TimeControl "40/5400+30:1800+30"]

1. d4 {[%emt 0:00:04]} Nf6 {[%emt 0:00:07]} 2. Bg5 {[%emt 0:00:23]} c5 {[%emt 0:00:07]} 3. Bxf6 {[%emt 0:00:08]} gxf6 {[%emt 0:00:06]} 4. d5 {[%emt 0:00:19]} Qb6 {[%emt 0:00:28]} 5. Qc1 {[%emt 0:00:08]} f5 {[%emt 0:00:25]} 6. c4 {[%emt 0:00:30]} Bg7 {[%emt 0:00:11]} 7. Nc3 {[%emt 0:00:23]} d6 {[%emt 0:00:41]} 8. e3 {[%emt 0:00:29]} Nd7 {[%emt 0:00:25]} 9. Qc2 {[%emt 0:02:40]} Qa5 {[%emt 0:01:57]} 10. Nge2 {[%emt 0:05:57]} b5 {[%emt 0:18:11]} 11. cxb5 {[%emt 0:01:27]} a6 {[%emt 0:15:08]} 12. bxa6 {[%emt 0:08:37]} Bxa6 {[%emt 0:01:12]} 13. Ng3 {[%emt 0:00:59]} Rb8 {[%emt 0:16:55]} 14. Nxf5 {[%emt 0:07:02]} Bf6 {[%emt 0:00:19]} 15. Rc1 {[%emt 0:00:38]} 1/2-1/2